fUST/lending_fUST_20240613
["ID","MTS","AMOUNT","RATE_DAILY","PERIOD"]
[329350729,1718271020231,1442.75395102,9.999e-05,2]
[329350730,1718271024439,509.1606772,9.999e-05,2]
[329350731,1718271032157,155.0,9.999e-05,2]
[329350743,1718271033411,208.48799237,9.999e-05,2]
[329350747,1718271034423,523.5676107,9.999e-05,2]
[329350769,1718271035059,-1995.86656917,0.00010525,2]
[329350771,1718271035094,-155.0,0.00010525,2]
[329350773,1718271035107,-807.00754533,0.00010526,2]
[329350775,1718271035121,-660.60013339,0.00010526,2]
[329350843,1718271039370,2096.16287465,9.998e-05,2]
[329350844,1718271039606,155.0,9.999e-05,2]
[329350867,1718271041517,155.0,9.999e-05,2]
[329350873,1718271041592,-1965.93131439,0.00010525,2]
[329350875,1718271041617,-1571.17261758,0.00010525,2]
[329350878,1718271041632,-2575.66855639,0.00010525,2]
[329350886,1718271041779,-326.08456874,0.00010525,2]
[329350889,1718271041792,-713.77734259,0.00010525,2]
[329350890,1718271041805,-770.26745626,0.00010525,2]
[329350892,1718271041823,-1442.75395102,0.00010525,2]
[329350893,1718271041841,-9079.87412046,0.00010526,2]
[329350896,1718271041856,-42124.85895111,0.00010526,2]
[329350898,1718271041880,-3121.08573838,0.00010527,4]
[329350900,1718271041907,-9594.02615296,0.00010527,2]
[329350902,1718271041923,-59609.75359022,0.00010527,2]
[329350904,1718271041955,-1907.77576469,0.00010528,2]
[329350906,1718271041992,-11103.40171616,0.00010528,2]
[329350909,1718271042019,-1877.54938127,0.00010528,2]
[329350911,1718271042040,-489.96273621,0.00010528,2]
[329350914,1718271042075,-353.1464487,0.00010528,2]
[329350915,1718271042111,-1912.05973097,0.00010529,2]
[329350917,1718271042133,-2644.05459629,0.00010529,2]
[329350919,1718271042162,-1984.62608834,0.00010529,2]
[329350921,1718271042190,-300.0,0.00010529,2]
[329350923,1718271042228,-300.0,0.00010529,2]
[329350925,1718271042243,-2137.38655326,0.0001053,2]
[329350927,1718271042253,-237.78786464,0.0001053,2]
[329350929,1718271042264,-46653.19179324,0.0001053,2]
[329350930,1718271042280,-228.60725406,0.0001053,2]
[329350932,1718271042292,-461.8677101,0.0001053,2]
[329350934,1718271042317,-411.78099756,0.00010531,2]
[329350936,1718271042330,-1114.23146943,0.00010535,2]
[329350938,1718271042343,-7125.41890264,0.00010546,2]
[329350940,1718271042359,-221.33479997,0.00010644,2]
[329350943,1718271042385,-219.35043341,0.00010664,2]
[329350946,1718271042405,-205.08706059,0.00010668,2]
[329350947,1718271042427,-233.62341894,0.00010765,2]
[329350950,1718271042460,-683.49371319,0.00010765,2]
[329350951,1718271042476,-456.46609536,0.00010765,2]
[329350953,1718271042513,-698.0145416,0.00010765,2]
[329350954,1718271042526,-186.51853177,0.00010765,2]
[329350956,1718271042545,-193.10225397,0.0001078,2]
[329350957,1718271042561,-329.75907103,0.0001078,2]
[329350959,1718271042604,-526.18828429,0.00010781,2]
[329350960,1718271042643,-182.41546814,0.00010782,2]
[329350963,1718271042687,-155.0,0.00010782,2]
[329350964,1718271042705,-164.71066412,0.00010782,2]
[329350967,1718271042725,-24900.0,0.00010784,2]
[329350969,1718271042739,-883.14,0.00010959,2]
[329350971,1718271042760,-735.95,0.00010959,2]
[329350972,1718271042774,-420.0,0.00011576,2]
[329350974,1718271042789,-420.0,0.00011582,2]
[329350975,1718271042813,-163.73640345,0.00011719,2]
[329350978,1718271042830,-286.08448969,0.0001183,2]
[329350980,1718271042849,-159.20632986,0.00011841,2]
[329350982,1718271042866,-493.42965621,0.00011841,2]
[329350985,1718271042903,-609.04917247,0.00011841,2]
[329350987,1718271042921,-297.60576888,0.00011841,2]
[329350989,1718271042938,-200.94745355,0.00011841,2]
[329350992,1718271042976,-268.14961215,0.00011841,2]
[329350994,1718271043004,-739.8287815,0.00011841,2]
[329350996,1718271043014,-195.52278458,0.00011841,2]
[329350997,1718271043026,-725.27893682,0.00011841,2]
[329350998,1718271043036,-595.95174347,0.00011843,2]
[329350999,1718271043048,-179.31705593,0.00011844,2]
[329351001,1718271043061,-7125.4189026,0.00011994,2]
[329351003,1718271043088,-587.0,0.00012726,2]
[329351005,1718271043104,-587.0,0.0001274,2]
[329351008,1718271043131,-175.14912016,0.00012758,2]
[329351010,1718271043148,-285.96567192,0.00012758,2]
[329351011,1718271043178,-3048.32351943,0.000129,2]
[329351013,1718271043193,-3048.32351942,0.00012971,2]
[329351015,1718271043209,-7125.4189026,0.00013442,2]
[329351017,1718271043228,-786.326921,0.00013699,2]
[329351019,1718271043239,-3000.0,0.00013699,2]
[329351021,1718271043250,-2071.73218597,0.00013853,2]
[329351023,1718271043261,-494.77424844,0.00013854,2]
[329351025,1718271043273,-823.0,0.00013992,2]
[329351026,1718271043285,-206.46909245,0.00013992,2]
[329351029,1718271043298,-240.21025864,0.00013992,2]
[329351030,1718271043316,-155.09410172,0.00013993,2]
[329351033,1718271043329,-155.9512672,0.00013993,2]
[329351034,1718271043347,-823.0,0.00014014,2]
[329351035,1718271043367,-5282.5380268,0.00014597,2]
[329351036,1718271043378,-3385.33441709,0.0001489,2]
[329351049,1718271050120,-509.1606772,0.00010524,2]
[329351050,1718271050141,-552.13356413,0.0001489,2]
[329351051,1718271050163,-869.9125219,0.0001489,2]
[329351052,1718271050337,155.0,9.999e-05,2]
[329351053,1718271051256,2096.16287465,9.999e-05,2]
[329351054,1718271051668,272.67145618,9.998e-05,2]
[329351060,1718271056123,-2683.52570932,0.00010524,2]
[329351062,1718271056137,-241.23828351,0.00010958,2]
[329351064,1718271056156,-751.21,0.00010959,2]
[329351066,1718271056168,-588.58538528,0.00014889,2]
[329351067,1718271056192,-2318.03839948,0.0001489,2]
[329351068,1718271056207,-737.94346192,0.000149,2]
[329351069,1718271056227,-186.10661164,0.000149,2]
[329351070,1718271056247,-186.10661163,0.000149,2]
[329351071,1718271056262,-186.10661163,0.000149,2]
[329351073,1718271056304,-165.79257293,0.00014992,2]
[329351074,1718271056339,-202.29207712,0.00014992,2]
[329351075,1718271056353,-222.23834523,0.00014992,2]
[329351076,1718271056369,-216.83032489,0.00014992,2]
[329351077,1718271056385,-161.13548397,0.00014992,2]
[329351078,1718271056398,-207.04519421,0.00014992,2]
[329351079,1718271056419,-726.30535293,0.00014992,7]
[329351080,1718271056433,-156.2945666,0.00014992,2]
[329351081,1718271056459,-201.20690723,0.00014992,2]
[329351082,1718271056490,-245.69854936,0.00014992,2]
[329351083,1718271056512,-155.59348475,0.00014992,2]
[329351084,1718271056540,-174.42825264,0.00014992,2]
[329351085,1718271056551,-270.84584174,0.00014992,2]
[329351086,1718271056584,-236.53722833,0.00014992,2]
[329351087,1718271056608,-228.62094309,0.00014993,2]
[329351088,1718271056621,-271.95390206,0.00014996,2]
[329351089,1718271056635,-237.63099648,0.00014996,2]
[329351090,1718271056651,-397.01190971,0.00014996,2]
[329351091,1718271056664,-166.0576793,0.00014996,2]
[329351092,1718271056679,-155.28096228,0.00014996,2]
[329351093,1718271056695,-293.92175245,0.00014997,4]
[329351094,1718271056711,-162.49556194,0.00014998,2]
[329351095,1718271056726,-164.71066412,0.00014998,2]
[329351096,1718271056741,-2644.05459629,0.00014998,2]
[329351097,1718271056760,-156.17060642,0.00014998,2]
[329351098,1718271056774,-207.53139565,0.00014999,2]
[329351099,1718271056791,-236.17348936,0.00014999,2]
[329351100,1718271056808,-19289.10546448,0.00015,2]
[329351103,1718271067131,2187.7672657,9.999e-05,2]
[329351104,1718271067208,155.01550155,9.999e-05,2]
[329351106,1718271099516,1000.0,9.978e-05,2]
[329351107,1718271099585,300.0,9.859e-05,2]
[329351108,1718271118486,155.0,9.999e-05,2]
[329351109,1718271119236,156.75203199,9.999e-05,2]
[329351110,1718271119292,1828.60767691,9.999e-05,2]
[329351111,1718271121397,-266.33727624,0.00010958,2]
[329351113,1718271121476,-281.87277953,0.00010958,2]
[329351114,1718271121719,-239.61453509,0.00010958,2]
[329351115,1718271121819,-216.52545345,0.00010958,2]
[329351117,1718271136301,155.0,9.999e-05,2]
[329351118,1718271179301,155.0,9.999e-05,2]
[329351119,1718271200423,155.0,9.999e-05,2]
[329351120,1718271208720,200.50912068,9.999e-05,2]
[329351121,1718271237985,15497.65202948,9.999e-05,2]
[329351122,1718271256155,161.27053556,9.999e-05,2]
[329351123,1718271262148,155.0,9.999e-05,2]
[329351124,1718271262231,155.0,9.999e-05,2]
[329351126,1718271277725,530.51032022,9.999e-05,2]
[329351127,1718271288361,1442.75395102,9.999e-05,2]
[329351128,1718271288609,155.0,9.999e-05,2]
[329351129,1718271289941,745.75265575,9.999e-05,2]
[329351130,1718271291799,155.0,9.999e-05,2]
[329351131,1718271293860,282.61589193,9.999e-05,2]
[329351132,1718271294104,155.0,9.999e-05,2]
[329351133,1718271295669,526.85006642,9.999e-05,2]
[329351134,1718271299228,2096.16287465,9.999e-05,2]
[329351135,1718271300772,5880.45582766,9.999e-05,2]
[329351136,1718271307475,286.00890419,9.999e-05,2]
[329351137,1718271310218,272.67145618,9.999e-05,2]
[329351138,1718271310360,208.48799237,9.999e-05,2]
[329351139,1718271310429,159.13163847,9.999e-05,2]
[329351140,1718271314852,372.91872278,9.999e-05,2]
[329351141,1718271319226,1605.88772437,9.999e-05,2]
[329351142,1718271322120,692.86602494,9.999e-05,2]
[329351143,1718271322208,509.1606772,9.999e-05,2]
[329351144,1718271324179,187.46396613,9.999e-05,2]
[329351145,1718271324635,317.64353351,9.999e-05,2]
[329351146,1718271329110,660.30185486,9.999e-05,2]
[329351147,1718271332493,155.0,9.999e-05,2]
[329351148,1718271353698,200.50912068,9.999e-05,2]
[329351149,1718271355499,1518.74519988,9.999e-05,2]
[329351150,1718271355582,155.0,9.999e-05,2]
[329351151,1718271356362,155.0,9.999e-05,2]
[329351152,1718271380355,490.14753303,9.999e-05,2]
[329351153,1718271383888,206.83933292,9.999e-05,2]
[329351154,1718271388057,155.0,9.999e-05,2]
[329351156,1718271401018,155.0,9.999e-05,2]
[329351157,1718271419358,1442.75395102,9.999e-05,2]
[329351158,1718271424740,530.51032022,9.999e-05,2]
[329351159,1718271434203,272.67145618,9.999e-05,2]
[329351160,1718271434670,526.85006642,9.999e-05,2]
[329351162,1718271446905,155.00155002,9.999e-05,2]
[329351163,1718271448707,286.00890419,9.999e-05,2]
[329351164,1718271451963,1995.86656917,9.999e-05,2]
[329351165,1718271455342,994.35,0.000265,120]
[329351166,1718271456034,157.80731331,9.999e-05,2]
[329351167,1718271460421,692.86602494,9.999e-05,2]
[329351168,1718271465858,372.91872278,9.999e-05,2]
[329351169,1718271476986,155.00155002,9.999e-05,2]
[329351170,1718271479243,187.46396613,9.999e-05,2]
[329351171,1718271481560,155.00155002,9.998e-05,2]
[329351172,1718271494706,200.50912068,9.999e-05,2]
[329351173,1718271513179,1984.33083004,9.999e-05,2]
[329351174,1718271523372,490.14753303,9.999e-05,2]
[329351175,1718271529070,155.0,9.999e-05,2]
[329351176,1718271541185,2096.16287465,9.999e-05,2]
[329351177,1718271542783,552.71924724,9.999e-05,2]
[329351178,1718271550899,155.00155002,9.999e-05,2]
[329351179,1718271551872,155.00155002,9.999e-05,2]
[329351180,1718271554800,5969.18885647,9.999e-05,2]
[329351181,1718271557222,1096.45127017,9.999e-05,2]
[329351182,1718271564926,523.5676107,9.999e-05,2]
[329351183,1718271568904,224.17741474,9.999e-05,2]
[329351184,1718271578279,272.67145618,9.999e-05,2]
[329351185,1718271581858,273.37336231,9.9e-05,2]
[329351186,1718271590547,273.37336231,9.9e-05,2]
[329351187,1718271598391,372.91872278,9.999e-05,2]
[329351188,1718271598692,273.37336231,9.9e-05,2]
[329351189,1718271605431,692.86602494,9.999e-05,2]
[329351190,1718271607121,273.37336231,9.9e-05,2]
[329351191,1718271613770,526.85006642,9.999e-05,2]
[329351192,1718271615178,273.37336231,9.9e-05,2]
[329351193,1718271616999,155.00155002,9.999e-05,2]
[329351194,1718271618278,526.85006642,9.999e-05,2]
[329351195,1718271622045,2095.64882228,9.999e-05,2]
[329351196,1718271622438,3616.33764897,9.999e-05,2]
[329351197,1718271623025,1877.54938127,9.998e-05,2]
[329351198,1718271623131,2644.05459629,9.998e-05,2]
[329351199,1718271624166,1877.54938127,9.898e-05,2]
[329351200,1718271632163,273.37336231,9.9e-05,2]
[329351201,1718271633901,200.50912068,9.999e-05,2]
[329351202,1718271635971,300.31915887,9.999e-05,2]
[329351203,1718271640434,3666.59512459,9.999e-05,2]
[329351204,1718271640654,273.37336231,9.9e-05,2]
[329351205,1718271648760,273.37336231,9.9e-05,2]
[329351206,1718271653198,2096.16287465,9.898e-05,2]
[329351207,1718271654100,252.71723914,9.898e-05,2]
[329351208,1718271657534,2096.16287465,9.799e-05,2]
[329351209,1718271658696,155.00155002,9.999e-05,2]
[329351210,1718271664524,3299.12552236,9.898e-05,2]
[329351211,1718271665611,3299.12552236,9.799e-05,2]
[329351212,1718271671243,2096.16287465,9.898e-05,2]
[329351213,1718271674585,273.37336231,9.9e-05,2]
[329351214,1718271675568,155.00155002,9.999e-05,2]
[329351215,1718271678103,155.00155002,9.999e-05,2]
[329351216,1718271679582,927.89421076,9.999e-05,2]
[329351217,1718271682477,266.80196093,9.9e-05,2]
[329351218,1718271688431,216.42006283,9.999e-05,2]
[329351219,1718271697209,324.67643538,9.898e-05,2]
[329351220,1718271715989,155.00155002,9.999e-05,2]
[329351221,1718271716334,24900.0,9.82e-05,2]
[329351222,1718271718749,272.67145618,9.999e-05,2]
[329351227,1718271761020,155.00155002,9.999e-05,2]
[329351228,1718271769009,286.00890419,9.999e-05,2]
[329351229,1718271780740,200.50912068,9.999e-05,2]
[329351230,1718271815102,155.0,9.999e-05,2]
[329351231,1718271815998,155.0,9.999e-05,2]
[329351232,1718271850425,250.0,9.807e-05,2]
[329351233,1718271857018,155.0,9.999e-05,2]
[329351234,1718271867468,523.5676107,9.999e-05,2]
[329351235,1718271897519,155.0,9.999e-05,2]
[329351236,1718271908532,155.0,9.999e-05,2]
[329351237,1718271981959,246.09852012,9.999e-05,2]
[329351239,1718272029648,155.0,9.999e-05,2]
[329351243,1718272096022,523.5676107,9.999e-05,2]
[329351244,1718272103891,-301.95978041,0.00010678,2]
[329351245,1718272103967,-290.15390441,0.00010678,2]
[329351246,1718272128713,-313.80205411,0.00010675,2]
[329351248,1718272153654,-320.07809519,0.00010673,2]
[329351249,1718272153707,-186.23993763,0.00010673,2]
[329351258,1718272178735,-330.20445585,0.0001067,2]
[329351259,1718272178994,-156.34941107,0.0001067,2]
[329351260,1718272203712,-300.0,0.00010666,2]
[329351261,1718272203754,-39.93553318,0.00010667,2]
[329351262,1718272203827,-291.19338549,0.00010667,2]
[329351291,1718272234486,-339.5000166,0.00010664,2]
[329351292,1718272234504,-1698.36134309,0.00010664,2]
[329351293,1718272234531,-1912.05973097,0.00010665,2]
[329351294,1718272234546,-1995.86656917,0.00010665,2]
[329351295,1718272234562,-42124.85895111,0.00010665,2]
[329351296,1718272234575,-300.0,0.00010666,2]
[329351297,1718272234592,-11103.40171616,0.00010666,2]
[329351298,1718272234617,-10553.23725982,0.00010667,2]
[329351308,1718272239563,524.64907675,9.999e-05,2]
[329351309,1718272240302,-619.69894878,0.00010664,2]
[329351313,1718272240395,-500.0,0.00010664,2]
[329351316,1718272240462,-9427.7828504,0.00010664,2]
[329351317,1718272240478,-10463.89778559,0.00010667,2]
[329351318,1718272240554,-6340.89467568,0.00010667,2]
[329351354,1718272244593,-18964.03315348,0.00010667,2]
[329351355,1718272244607,-9594.02615296,0.00010667,2]
[329351356,1718272244619,-1984.62608834,0.00010667,2]
[329351357,1718272244633,-1877.54938127,0.00010669,2]
[329351358,1718272244645,-2644.05459629,0.00010669,2]
[329351359,1718272244659,-19318.48895312,0.0001067,2]
[329351360,1718272244675,-59609.75359022,0.00010671,2]
[329351361,1718272244692,-396.4660997,0.00010677,2]
[329351363,1718272244710,-5136.84515103,0.00010684,2]
[329351365,1718272244726,-162.16840743,0.0001078,2]
[329351366,1718272244742,-286.08448969,0.0001078,2]
[329351367,1718272244762,-324.10468188,0.00010787,2]
[329351368,1718272244795,-155.9822734,0.00010794,2]
[329351369,1718272244808,-155.07945815,0.00010796,2]
[329351370,1718272244824,-223.19908593,0.00010799,2]
[329351371,1718272244845,-155.75948385,0.00010803,2]
[329351372,1718272244863,-201.25275961,0.00010804,2]
[329351373,1718272244874,-285.67716783,0.00010809,2]
[329351374,1718272244888,-201.75483051,0.00010809,2]
[329351375,1718272244921,-271.70523496,0.00010814,2]
[329351376,1718272244935,-214.69057053,0.00010818,2]
[329351377,1718272244947,-927.51529643,0.00010818,2]
[329351378,1718272244958,-175.12163332,0.00010818,2]
[329351379,1718272244979,-309.94113261,0.00010912,2]
[329351380,1718272244996,-155.08840647,0.00010913,2]
[329351381,1718272245013,-554.38934168,0.00010914,2]
[329351382,1718272245025,-297.00270438,0.00010919,2]
[329351383,1718272245046,-156.37435444,0.0001092,2]
[329351384,1718272245057,-1024.51444186,0.0001092,2]
[329351385,1718272245084,-608.88969159,0.00010924,2]
[329351386,1718272245098,-240.22110961,0.00010924,2]
[329351387,1718272245111,-686.51550809,0.00010925,2]
[329351388,1718272245123,-301.97158825,0.00010925,2]
[329351389,1718272245143,-155.01240099,0.00010928,2]
[329351390,1718272245156,-187.30539246,0.00010931,2]
[329351391,1718272245167,-155.16948848,0.00010932,2]
[329351392,1718272245180,-157.71356527,0.00010932,2]
[329351393,1718272245197,-7922.90185595,0.00010938,2]
[329351394,1718272245209,-1439.66088124,0.00010938,2]
[329351395,1718272245224,-493.13015333,0.00010938,2]
[329351396,1718272245243,-242.45261852,0.0001094,2]
[329351397,1718272245268,-155.01085076,0.0001094,2]
[329351398,1718272245284,-165.86790259,0.0001094,2]
[329351412,1718272249755,-2037.86135969,0.00010666,2]
[329351413,1718272249772,-260.20041395,0.0001094,2]
[329351414,1718272249788,-155.01085076,0.0001094,2]
[329351415,1718272249800,-206.47994321,0.0001094,2]
[329351416,1718272249811,-320.80719937,0.00010944,2]
[329351417,1718272249829,-387.9350993,0.00010947,2]
[329351418,1718272251996,-272.00262486,0.00010947,2]
[329351419,1718272252016,-155.11425434,0.00010949,2]
[329351420,1718272252041,-164.71066412,0.00010949,2]
[329351421,1718272252075,-208.37177091,0.00010949,2]
[329351422,1718272252103,-159.16077728,0.00010949,2]
[329351423,1718272252125,-510.67513466,0.00010949,2]
[329351424,1718272252142,-317.46976899,0.00010949,2]
[329351425,1718272252160,-155.04185566,0.0001095,2]
[329351426,1718272252187,-725.27893682,0.00010952,2]
[329351427,1718272252203,-285.88488228,0.00010952,2]
[329351428,1718272252220,-595.95174347,0.00010955,2]
[329351429,1718272252251,-179.31705593,0.00010955,2]
[329351430,1718272252266,-155.02170304,0.00010955,2]
[329351431,1718272252277,-195.52278458,0.00010955,2]
[329351432,1718272252286,-981.78,0.00010959,2]
[329351433,1718272252297,-331.09248037,0.00010959,2]
[329351434,1718272252939,-592.57751963,0.00010959,2]
[329351435,1718272252953,-420.0,0.00011725,2]
[329351436,1718272252965,-420.0,0.00011733,2]
[329351437,1718272252977,-155.02015262,0.00012035,2]
[329351438,1718272252997,-5136.84515101,0.00012098,2]
[329351439,1718272253016,-9971.74236549,0.000125,2]
[329351440,1718272253034,-587.0,0.00012889,2]
[329351441,1718272253064,-587.0,0.00012906,2]
[329351442,1718272253084,-300.0,0.00013444,2]
[329351443,1718272253099,-1000.0,0.00013491,2]
[329351444,1718272253119,-5136.84515101,0.00013511,2]
[329351445,1718272253130,-936.76783145,0.00013532,2]
[329351446,1718272253142,-1000.0,0.00013544,2]
[329351447,1718272253156,-1000.0,0.00013561,2]
[329351448,1718272253166,-300.0,0.00013573,2]
[329351449,1718272253188,-1000.0,0.00013601,2]
[329351450,1718272253205,-300.0,0.0001361,2]
[329351451,1718272253216,-1000.0,0.0001364,2]
[329351452,1718272253227,-300.0,0.00013643,2]
[329351453,1718272253244,-155.0,0.00013693,2]
[329351454,1718272253263,-494.77424844,0.00013693,2]
[329351455,1718272253275,-1424.455388,0.00013699,2]
[329351456,1718272253286,-220.6921017,0.00013699,2]
[329351457,1718272253298,-3000.0,0.00013699,2]
[329351458,1718272253314,-176.0817224,0.00014,2]
[329351459,1718272253353,-823.0,0.00014168,2]
[329351460,1718272253373,-823.0,0.00014196,2]
[329351461,1718272253514,-5282.5380268,0.00014734,2]
[329351462,1718272253528,-5136.84515101,0.00014925,2]
[329351463,1718272253563,-208.05531574,0.00014991,2]
[329351464,1718272253578,-1282.24587467,0.00014996,2]
[329351465,1718272253605,-1867.600454,0.00014996,2]
[329351466,1718272253616,-155.02170304,0.00014998,2]
[329351467,1718272253628,-241.30688348,0.00014998,2]
[329351468,1718272253641,-155.08776243,0.00014998,2]
[329351469,1718272253655,-411.64915333,0.00014998,2]
[329351470,1718272253669,-2274.55719236,0.00014998,2]
[329351471,1718272253692,-31594.38741502,0.00015,2]
[329351472,1718272253713,-1692.06699565,0.00015,2]
[329351473,1718272253730,-2412.19596902,0.00015,2]
[329351474,1718272253752,-155.0,0.00015,2]
[329351475,1718272253777,-1101.24268017,0.00015,2]
[329351476,1718272253799,-2817.72604332,0.00015,2]
[329351477,1718272253816,-1303.29757194,0.00015,2]
[329351478,1718272253840,-946.2991471,0.00015,2]
[329351479,1718272253853,-155.0,0.00015,2]
[329351480,1718272253893,-1000.0,0.00015,2]
[329351481,1718272253922,-1825.2,0.00015396,2]
[329351482,1718272253946,-1152.0,0.00015574,2]
[329351483,1718272253963,-489.52678547,0.000156,2]
[329351484,1718272253985,-1152.0,0.00015616,2]
[329351485,1718272254005,-1825.2,0.0001563,2]
[329351486,1718272254030,-1825.2,0.00015863,2]
[329351487,1718272254068,-7426.89175257,0.00016,2]
[329351488,1718272254095,-1000.0,0.00016,3]
[329351489,1718272254156,-1825.2,0.00016097,2]
[329351490,1718272254173,-154.22851266,0.00016273,3]
[329351491,1718272254200,-621.40343405,0.0001632,2]
[329351492,1718272254245,-1825.2,0.0001633,2]
[329351493,1718272254272,-5136.84515101,0.00016338,2]
[329351494,1718272254294,-155.52357054,0.00016338,7]
[329351495,1718272254315,-2954.0,0.000164,2]
[329351496,1718272254335,-153.0,0.00016405,2]
[329351497,1718272254350,-155.1755601,0.00016432,2]
[329351498,1718272254368,-301.37770678,0.00016432,2]
[329351499,1718272254393,-155.21573056,0.00016432,2]
[329351500,1718272254457,-157.16582144,0.00016434,2]
[329351501,1718272254493,-301.22745446,0.00016434,2]
[329351502,1718272254505,-2995.71262963,0.00016434,2]
[329351503,1718272254518,-177.98719514,0.00016434,2]
[329351504,1718272254550,-173.41274208,0.00016434,2]
[329351505,1718272254562,-185.0879601,0.00016434,2]
[329351506,1718272254582,-155.10919426,0.00016434,2]
[329351507,1718272254594,-155.09075319,0.00016434,2]
[329351508,1718272254616,-241.49357769,0.00016434,2]
[329351509,1718272254653,-249.66488066,0.00016434,2]
[329351510,1718272254673,-302.49376677,0.00016434,2]
[329351511,1718272254728,-241.99171083,0.00016434,2]
[329351512,1718272254740,-290.14458149,0.00016434,2]
[329351513,1718272254754,-231.4109804,0.00016436,2]
[329351514,1718272254764,-155.19930024,0.00016436,2]
[329351515,1718272254775,-204.88767984,0.00016436,2]
[329351516,1718272254785,-300.84605926,0.00016436,2]
[329351517,1718272254796,-181.18805606,0.00016436,2]
[329351518,1718272254826,-155.11275086,0.00016436,2]
[329351519,1718272254837,-225.91424301,0.00016436,2]
[329351520,1718272254849,-155.23842214,0.00016436,2]
[329351521,1718272254861,-298.63884442,0.00016436,2]
[329351522,1718272254871,-177.82213511,0.00016436,2]
[329351523,1718272254885,-155.1051018,0.00016436,2]
[329351524,1718272254897,-195.38365869,0.00016436,2]
[329351525,1718272254913,-164.4262296,0.00016436,2]
[329351526,1718272254934,-505.28105733,0.00016438,2]
[329351527,1718272254956,-500.0,0.00016438,2]
[329351528,1718272254974,-500.0,0.00016438,2]
[329351529,1718272255000,-252.83604753,0.00016438,2]
[329351530,1718272255036,-500.0,0.00016438,2]
[329351531,1718272255056,-500.0,0.00016438,2]
[329351532,1718272255070,-500.0,0.00016438,2]
[329351533,1718272255082,-500.0,0.00016438,2]
[329351534,1718272255093,-175.60271591,0.00016438,2]
[329351535,1718272255105,-500.0,0.00016438,2]
[329351536,1718272255120,-500.0,0.00016438,2]
[329351537,1718272255134,-500.0,0.00016438,2]
[329351538,1718272255148,-500.0,0.00016438,2]
[329351539,1718272255161,-500.0,0.00016438,2]
[329351540,1718272255185,-500.0,0.00016438,2]
[329351541,1718272255220,-500.0,0.00016438,2]
[329351542,1718272255237,-500.0,0.00016438,2]
[329351543,1718272255252,-500.0,0.00016438,2]
[329351544,1718272255268,-500.0,0.00016438,2]
[329351545,1718272255279,-555.36522178,0.00016438,2]
[329351546,1718272255294,-634.80799017,0.00016438,2]
[329351547,1718272255323,-500.0,0.00016438,2]
[329351548,1718272255341,-500.0,0.00016438,2]
[329351549,1718272255353,-364.93623762,0.00016438,2]
[329351550,1718272255365,-500.0,0.00016438,2]
[329351551,1718272255386,-500.0,0.00016438,2]
[329351552,1718272255409,-500.0,0.00016438,2]
[329351553,1718272255442,-500.0,0.00016438,2]
[329351554,1718272255478,-500.0,0.00016438,2]
[329351555,1718272255509,-500.0,0.00016438,2]
[329351556,1718272255542,-500.0,0.00016438,2]
[329351557,1718272255569,-500.0,0.00016438,2]
[329351558,1718272255596,-458.74528281,0.00016438,2]
[329351559,1718272255625,-500.0,0.00016438,2]
[329351560,1718272255646,-500.0,0.00016438,2]
[329351561,1718272255691,-500.0,0.00016438,2]
[329351562,1718272255728,-500.0,0.00016438,2]
[329351563,1718272255741,-500.0,0.00016438,2]
[329351564,1718272255759,-500.0,0.00016438,2]
[329351565,1718272255775,-500.0,0.00016438,2]
[329351566,1718272255789,-500.0,0.00016438,2]
[329351567,1718272255811,-500.0,0.00016438,2]
[329351568,1718272255828,-500.0,0.00016438,2]
[329351569,1718272255842,-500.0,0.00016438,2]
[329351570,1718272255872,-500.0,0.00016438,2]
[329351571,1718272255886,-500.0,0.00016438,2]
[329351572,1718272255911,-425.97939898,0.00016438,2]
[329351573,1718272255931,-500.0,0.00016438,2]
[329351574,1718272255952,-169.73002723,0.00016438,2]
[329351575,1718272255982,-504.32518635,0.00016438,2]
[329351576,1718272256007,-500.0,0.00016438,2]
[329351577,1718272256040,-500.0,0.00016438,2]
[329351578,1718272256063,-509.74139649,0.00016438,2]
[329351579,1718272256077,-500.0,0.00016438,2]
[329351580,1718272256107,-504.71014263,0.00016438,2]